Cogmind - Beta 12 @@@ ROGUE MODE // 2023.03.07 @ 11:04:08 Player: Inkie Result: Self-destructed Performance ------------- Evolutions (4) 2000 Regions Visited (14) 2800 Robots Destroyed (100) 500 Value Destroyed (4112) 4112 Prototype IDs (243) 4860 Alien Tech Used (0) 0 Bonus (5656) 5656 TOTAL SCORE: 19928 Bonus ------- High Alert Combat Kills 110 Follower Combat Kills 890 Entered Garrisons 400 Used RIF Installer 1000 Aligned with FarCom 300 Met Data Miner 300 Used Data Conduit 3000 Friendly Fire -344 Cogmind --------- Core Integrity 834/850 Matter 215/300 Energy 500/500 System Corruption 0% Temperature Hot (295) Movement Treading (1130) Ox12 Location -6/Factory Parts ------- > --- POWER (2) -------- Improved Deuterium Engine Heavy Deuterium Engine > --- PROPULSION (2) --- Armored Treads (fused) Armored Wheel > --- UTILITY (9) ------ Humpback Advanced Terrain Scan Processor Hardened Medium Armor Plating Layered Medium Armor Plating Makeshift System Shield Makeshift System Shield Makeshift System Shield Relay Coupler [NC] (17) > --- WEAPON (2) ------- Neutron Cannon > --- INVENTORY (35) --- Huge Storage Unit Advanced Energy Well (500) High-capacity Matter Pod (200) Improved Terrain Scanner Advanced Targeting Computer Advanced Particle Charger Transmission Jammer Layered Medium Armor Plating Reactive Plating Experimental Thermal Shield Hacking Suite System Shield Makeshift System Shield Authchip [R/NC] Authchip [R/NC] Authchip [R/NC] Relay Coupler [NC] (25) Relay Coupler [Sentry] (21) Neutron Cannon Rocket Array Rocket Array Remote Datajack Peak State ------------ > --- POWER ------------ Improved Deuterium Engine Heavy Deuterium Engine > --- PROPULSION ------- Armored Treads Armored Wheel > --- UTILITY ---------- Humpback Improved Terrain Scanner Advanced Terrain Scan Processor Hardened Medium Armor Plating Layered Medium Armor Plating Layered Medium Armor Plating Makeshift System Shield Relay Coupler [NC] > --- WEAPON ----------- Plasma Cannon Neutron Cannon > --- INVENTORY -------- Huge Storage Unit Advanced Energy Well High-capacity Matter Pod Advanced Targeting Computer Advanced Particle Charger Transmission Jammer Reactive Plating Experimental Thermal Shield Hacking Suite System Shield Makeshift System Shield Makeshift System Shield Makeshift System Shield Authchip [R/NC] Authchip [R/NC] Authchip [R/NC] Relay Coupler [NC] Relay Coupler [Sentry] Neutron Cannon Rocket Array Rocket Array Remote Datajack [Rating: 61] Favorites ----------- Power Heavy Deuterium Engine Engine Heavy Deuterium Engine Power Core Light Nuclear Core Propulsion Light Treads Treads Light Treads Wheel Armored Wheel Utility Relay Coupler [NC] Device Improved Heat Sink Storage Humpback Processor Advanced Terrain Scan Processor Hackware Relay Coupler [NC] Protection Reactive Plating Weapon Cooled Particle Cannon Energy Gun Gatling Laser Energy Cannon Cooled Particle Cannon Ballistic Gun Assault Rifle Launcher Grenade Launcher Special Weapon Remote Datajack Build | -11 -10 -10 -10 -9 -8 -8 -8 -8 -7 -7 -7 -7 -6 -6 ------- Run | Jun Mat Min Exi Min Mat Gar Mat Gar Fac Low Low Dat Pro Fac Slots Evolved 8 | . . . . . 4 . . . 2 . . . . 2 Power 1 | . . . . . . . . . . . . . . 1 Propulsion . | . . . . . . . . . . . . . . . Utility 7 | . . . . . 4 . . . 2 . . . . 1 Weapon . | . . . . . . . . . . . . . . . Parts Attached 132 | 7 5 3 1 . 1 20 10 13 42 4 7 13 2 4 Power 11 | 2 1 . . . . 2 . 1 4 . . . . 1 Engine 10 | 2 1 . . . . 2 . . 4 . . . . 1 Core 1 | . . . . . . . . 1 . . . . . . Reactor . | . . . . . . . . . . . . . . . Propulsion 17 | 2 . . . . . 4 2 1 4 1 1 2 . . Treads 10 | 2 . . . . . 4 2 . . 1 . 1 . . Leg . | . . . . . . . . . . . . . . . Wheel 7 | . . . . . . . . 1 4 . 1 1 . . Hover . | . . . . . . . . . . . . . . . Flight . | . . . . . . . . . . . . . . . Utility 49 | 1 2 . 1 . 1 5 5 4 15 3 1 6 2 3 Device 14 | . 1 . . . . 1 3 1 2 2 1 2 1 . Storage 6 | 1 1 . 1 . 1 . . . 2 . . . . . Processor 2 | . . . . . . . 1 . . 1 . . . . Hackware 13 | . . . . . . 1 1 2 6 . . . . 3 Protection 14 | . . . . . . 3 . 1 5 . . 4 1 . Artifact . | . . . . . . . . . . . . . . . Weapon 55 | 2 2 3 . . . 9 3 7 19 . 5 5 . . Energy Gun 16 | . . . . . . 3 2 4 6 . . 1 . . Energy Cannon 12 | . . . . . . 2 . . 5 . 3 2 . . Ballistic Gun 6 | 2 1 2 . . . 1 . . . . . . . . Ballistic Cannon . | . . . . . . . . . . . . . . . Launcher 13 | . 1 1 . . . 3 1 1 4 . 2 . . . Special Weapon 8 | . . . . . . . . 2 4 . . 2 . . Impact Weapon . | . . . . . . . . . . . . . . . Slashing Weapon . | . . . . . . . . . . . . . . . Piercing Weapon . | . . . . . . . . . . . . . . . Special Melee Weapon . | . . . . . . . . . . . . . . . Unidentified Prototypes 3 | . . . . . . . . . 3 . . . . . Parts Lost 19 | . . . . . . 2 1 1 4 1 2 7 . 1 Power . | . . . . . . . . . . . . . . . Propulsion 4 | . . . . . . . . . 1 1 1 1 . . Utility 13 | . . . . . . 2 1 1 3 . 1 5 . . Weapon 2 | . . . . . . . . . . . . 1 . 1 Highest Loss Streak 3 | . . . . . . 2 1 1 3 1 2 3 . 1 To Critical Strikes . | . . . . . . . . . . . . . . . Average Slot Usage (%) 90 | . 91 100 100 100 63 87 97 91 90 91 87 77 90 86 Engine 8 | . 14 14 14 14 9 9 9 3 6 7 7 7 7 13 Treads 10 | . 28 28 28 28 18 18 18 13 1 1 3 1 7 6 Wheel 6 | . . . . . . . . 4 12 13 7 12 7 6 Device 12 | . 6 14 14 14 9 15 16 9 10 8 19 13 7 4 Storage 9 | . 14 14 14 14 9 9 9 9 10 7 7 7 7 6 Processor 4 | . . . . . . . 7 9 3 6 7 7 7 6 Hackware 7 | . . . . . . 7 10 13 10 7 7 7 7 10 Protection 11 | . . . . . . 10 9 5 16 21 10 10 21 18 Energy Gun 3 | . . . . . . 2 6 17 6 . . . . . Energy Cannon 7 | . . . . . . 5 8 . 5 15 14 6 15 12 Ballistic Gun 4 | . 27 20 28 28 18 4 . . . . . . . . Launcher 1 | . . 8 . . . 5 2 . . . . . . . Naked Turns . | . . . . . . . . . . . . . . . Heaviest Build 262 | 12 28 31 51 51 91 104 104 100 261 261 246 245 253 262 Greatest Support 40 | 40 40 40 40 40 40 40 40 40 26 22 28 28 12 12 Greatest Overweight (x) 21 | . . . 1 1 2 2 2 5 11 20 20 20 21 21 Average Overweight (x) 7 | . . . . 1 1 2 2 3 8 11 19 10 20 20 Largest Inventory Capacity 35 | 8 15 15 20 20 25 25 25 25 35 35 35 35 35 35 Average Capacity 28 | 6 14 15 18 20 23 25 25 25 30 35 35 35 35 35 Most Carried 35 | 1 7 12 18 19 22 25 25 25 25 35 35 34 24 23 Average Carried 23 | . 3 10 16 18 19 24 24 24 22 29 34 28 24 22 Final Capacity 35 | 8 15 15 20 20 25 25 25 25 35 35 35 35 35 35 Final Carried 34 | 1 7 12 18 19 22 25 25 25 22 34 34 24 24 22 Class Distribution -------------------- 47% | Hauler-Mutant 20% | Mutant 18% | Bothacker-Mutant 11% | Scavenger-Mutant Dominant Class ---------------- Mutant | -10/Materials Mutant | -10/Mines Mutant | -10/Exiles Mutant | -9/Mines Mutant | -8/Materials Scavenger-Mutant | -8/Garrison Scavenger-Mutant | -8/Materials Bothacker-Mutant | -8/Garrison Hauler-Mutant | -7/Factory Hauler-Mutant | -7/Lower Caves Hauler-Mutant | -7/Lower Caves Hauler-Mutant | -7/Data Miner Hauler-Mutant | -6/Proximity Caves Hauler-Mutant | -6/Factory Resources | -11 -10 -10 -10 -9 -8 -8 -8 -8 -7 -7 -7 -7 -6 -6 ----------- Run | Jun Mat Min Exi Min Mat Gar Mat Gar Fac Low Low Dat Pro Fac Matter Collected 2391 | 193 158 117 10 17 10 361 241 175 590 150 209 145 15 . Remotely . | . . . . . . . . . . . . . . . Salvage Created 3532 | . 283 44 . 102 . 317 543 133 1171 205 466 216 52 . Parts 189 | . 17 7 . 3 . 21 19 13 69 4 26 7 3 . Haulers Intercepted 2 | . . . . . . . 2 . . . . . . . Recyclers Shooed 2 | . . . . . . . 1 . 1 . . . . . Parts Field Recycled . | . . . . . . . . . . . . . . . Retrieved Matter . | . . . . . . . . . . . . . . . Parts Self-Destructed 31 | . . . . . . . . . . 11 16 . 4 . Prevented 11 | . . . . . . . . . . 10 . . 1 . Kills | -11 -10 -10 -10 -9 -8 -8 -8 -8 -7 -7 -7 -7 -6 -6 ------- Run | Jun Mat Min Exi Min Mat Gar Mat Gar Fac Low Low Dat Pro Fac Combat Hostiles Destroyed 82 | . 6 3 . 2 . 14 10 6 22 4 12 3 . . Guns 26 | . 4 1 . 2 . 2 5 1 11 . . . . . Cannons 18 | . . . . . . 3 2 . 4 3 5 1 . . AOE 33 | . 2 2 . . . 9 3 5 5 . 7 . . . Classes Destroyed 15 | . 2 2 . . . 2 2 . 5 1 . . 1 . Worker 1 | . . . . . . . . . 1 . . . . . Builder 4 | . . 1 . . . . . . 3 . . . . . Tunneler 2 | . . . . . . . . . 2 . . . . . Hauler 2 | . . . . . . . 2 . . . . . . . Recycler 5 | . . . . . . . 2 . 3 . . . . . Minesweeper 1 | . . . . . . . . . . 1 . . . . Mechanic 1 | . 1 . . . . . . . . . . . . . Operator 1 | . . . . . . . . . 1 . . . . . Swarmer 22 | . . 3 . . . 4 3 5 1 2 4 . . . Grunt 39 | . 6 . . 2 . 5 6 1 14 2 3 . . . Duelist 2 | . . . . . . 1 . . 1 . . . . . Sentry 8 | . . . . . . 4 1 1 1 . 1 . . . Hunter 1 | . . . . . . . . . 1 . . . . . Programmer 5 | . . . . . . . . . 4 . 1 . . . Enhanced Grunt 3 | . . . . . . . . . . . . 3 . . Decomposer 1 | . . . . . . . . . . . 1 . . . Packrat 1 | . . . . . . . . . . . 1 . . . Samaritan 1 | . . . . . . . . . . . . . 1 . Wasp 2 | . . . . . . . . . . . 2 . . . Thug 1 | . . . . . . . . . . . 1 . . . Best Kill Streak 9 | . 2 3 . 2 . 9 5 5 5 2 4 1 . . Combat Bots Only 9 | . 2 2 . 2 . 9 5 5 5 2 4 1 . . Max Kills in Single Turn 5 | . 1 2 . 2 . 3 4 3 5 1 4 1 1 . Gunslinging 1 | . . . . 1 . . . . . . . . . . Exploded 5 | . 1 1 . . . 3 3 3 5 . 4 . . . Melee . | . . . . . . . . . . . . . . . Uniques/NPCs Destroyed . | . . . . . . . . . . . . . . . Combat | -11 -10 -10 -10 -9 -8 -8 -8 -8 -7 -7 -7 -7 -6 -6 -------- Run | Jun Mat Min Exi Min Mat Gar Mat Gar Fac Low Low Dat Pro Fac Damage Taken 4788 | . 222 120 . 20 . 638 562 156 1036 586 358 923 . 167 Core 529 | . 26 15 . . . 74 61 8 51 60 37 181 . 16 Absorbed by Shields 297 | . . . . . . 53 . . 180 . 64 . . . Regen/Repaired (Parts) 326 | . . . . . . . . . 326 . . . . . Core Remaining (%) 77 | 100 . . . 83 . . . 74 . . . . 53 . Volleys Fired 280 | . 23 6 . 1 . 53 24 14 74 24 22 25 7 7 Largest 2 | . 2 2 . 2 . 2 2 2 2 2 2 2 2 1 Hottest 170 | . 40 45 . 45 . 150 160 160 160 110 170 170 170 90 Shots Fired 480 | . 43 8 . 2 . 83 46 21 125 50 40 40 15 7 Gun 192 | . 40 4 . 2 . 32 28 14 64 . . 8 . . Cannon 230 | . . . . . . 26 16 . 48 50 37 31 15 7 Launcher 41 | . 3 4 . . . 25 2 2 2 . 3 . . . Special 17 | . . . . . . . . 5 11 . . 1 . . Kinetic 58 | . 40 4 . 2 . 12 . . . . . . . . Thermal 338 | . . . . . . 26 44 12 108 50 37 39 15 7 Explosive 41 | . 3 4 . . . 25 2 2 2 . 3 . . . Electromagnetic 26 | . . . . . . 20 . 2 4 . . . . . Robot Hit Streak 24 | . 18 16 . 3 . 7 24 13 14 6 7 15 3 3 Robot Miss Streak 5 | . 3 1 . . . 4 3 1 4 2 5 2 2 1 Penetration Max . | . . . . . . . . . . . . . . . Secondary Targets 1 | . . . . 1 . . . . . . . . . . Max Gunslinging Chain 1 | . . . . 1 . . . . . . . . . . Shots Hit Robots 287 | . 33 2 . 2 . 20 36 11 101 29 20 26 4 3 Core Hits 218 | . 18 6 . 2 . 34 26 11 74 6 24 15 1 1 Critical Kills 1 | . . . . . . . 1 . . . . . . . Critical Parts Destroyed 1 | . 1 . . . . . . . . . . . . . Critical Strikes 2 | . 1 . . . . . 1 . . . . . . . Meltdown 1 | . . . . . . . 1 . . . . . . . Destroy 1 | . 1 . . . . . . . . . . . . . Melee Attacks . | . . . . . . . . . . . . . . . Impact . | . . . . . . . . . . . . . . . Slashing . | . . . . . . . . . . . . . . . Piercing . | . . . . . . . . . . . . . . . Sneak Attacks . | . . . . . . . . . . . . . . . Combat Hostiles . | . . . . . . . . . . . . . . . Follow-up Attacks . | . . . . . . . . . . . . . . . Damage Inflicted 9320 | . 404 162 . 28 . 1765 1051 350 3068 811 918 500 140 123 Guns 2877 | . 284 24 . 28 . 123 656 168 1437 . . 157 . . Cannons 3265 | . . . . . . 252 250 . 884 811 481 324 140 123 Explosions 3148 | . 112 138 . . . 1390 142 182 747 . 437 . . . Melee . | . . . . . . . . . . . . . . . Ramming 30 | . 8 . . . . . 3 . . . . 19 . . Kinetic 379 | . 284 24 . 28 . 43 . . . . . . . . Thermal 5655 | . . . . . . 252 906 168 2293 811 481 481 140 123 Explosive 3148 | . 112 138 . . . 1390 142 182 747 . 437 . . . Electromagnetic 108 | . . . . . . 80 . . 28 . . . . . Impact . | . . . . . . . . . . . . . . . Slashing . | . . . . . . . . . . . . . . . Piercing . | . . . . . . . . . . . . . . . Highest Corruption 7 | . . . . . . . 2 2 4 4 4 7 7 . Average Corruption 4 | . . . . . . . 2 2 3 4 4 5 7 . Corruption Purged . | . . . . . . . . . . . . . . . Corruption Blocked . | . . . . . . . . . . . . . . . Effects 182 | . . . . . . . . 13 53 25 44 14 33 . Message Errors 52 | . . . . . . . . 2 13 8 14 2 13 . Matter Fused 48 | . . . . . . . . 3 16 5 14 5 5 . Heat Flow Errors 12 | . . . . . . . . 1 3 4 1 1 2 . Energy Discharges 19 | . . . . . . . . . 5 4 4 3 3 . Parts Rejected 3 | . . . . . . . . . 2 . 1 . . . Parts Fused 2 | . . . . . . . . . . 1 . 1 . . Data Loss (minor) 20 | . . . . . . . . 3 6 1 5 1 4 . Data Loss (major) 10 | . . . . . . . . 1 4 . 3 . 2 . Misfires 10 | . . . . . . . . 1 3 2 1 1 2 . Alerts 4 | . . . . . . . . 1 1 . . . 2 . Weapon Failures 2 | . . . . . . . . 1 . . 1 . . . Overload Shots 2 | . . . . . . . . . . . 2 . . . Overflow Damage 182 | . . . . . . 45 . 4 65 40 16 . 12 . Projectiles 118 | . . . . . . . . . 50 40 16 . 12 . Explosions 64 | . . . . . . 45 . 4 15 . . . . . Melee . | . . . . . . . . . . . . . . . Knockbacks . | . . . . . . . . . . . . . . . Impact . | . . . . . . . . . . . . . . . Kinetic . | . . . . . . . . . . . . . . . Secondary . | . . . . . . . . . . . . . . . Self-Inflicted Damage 455 | . . 52 . . . 46 . . 348 . . 9 . . Shots 10 | . . 2 . . . 3 . . 5 . . . . . Rammed 4 | . 2 . . . . . 1 . . . . 1 . . Targets Rammed 4 | . 2 . . . . . 1 . . . . 1 . . Kicked . | . . . . . . . . . . . . . . . Crushed . | . . . . . . . . . . . . . . . Highest Temperature 351 | . 18 . . . . 12 99 176 325 276 102 292 351 295 Average Temperature 91 | . 9 . . . . 5 51 35 70 128 30 96 131 66 Received Heat Transfer 1418 | . 129 . . 9 . 241 360 36 192 279 112 . . 60 Effects 2 | . . . . . . . . . . . . . 2 . Energy Bleed 1 | . . . . . . . . . . . . . 1 . Interference 1 | . . . . . . . . . . . . . 1 . Siege Activations . | . . . . . . . . . . . . . . . Robots Corrupted . | . . . . . . . . . . . . . . . Combat Hostiles . | . . . . . . . . . . . . . . . Parts Fried 1 | . . . . . . . . . 1 . . . . . Impact Corruptions . | . . . . . . . . . . . . . . . Robots Melted 6 | . . . . . . . 1 . 2 1 . 2 . . Combat Hostiles 5 | . . . . . . . . . 2 1 . 2 . . Parts Melted 25 | . . . . . . . 7 1 15 . 2 . . . Heat Transferred 10338 | . . . . . . 330 1845 375 4324 1381 783 1200 100 . Parts Sabotaged . | . . . . . . . . . . . . . . . Parts Stolen . | . . . . . . . . . . . . . . . Parts Stripped . | . . . . . . . . . . . . . . . Power Chain Reactions . | . . . . . . . . . . . . . . . Missiles Intercepted . | . . . . . . . . . . . . . . . Alert | -11 -10 -10 -10 -9 -8 -8 -8 -8 -7 -7 -7 -7 -6 -6 ------- Run | Jun Mat Min Exi Min Mat Gar Mat Gar Fac Low Low Dat Pro Fac Peak Influence 762 | . 223 91 . 71 119 762 550 410 666 . . . . 347 Initial 371 | . . 8 . . 27 79 371 214 214 . . . . 300 Average 259 | . 104 40 . 24 102 393 360 341 258 . . . . 307 Maximum Alert Level 3 | . 1 . . . . 3 2 2 2 . . . . 1 Low Security (%) 37 | 100 67 100 . 100 100 31 . . 31 . . . . . Level 1 40 | . 32 . . . . 17 61 51 56 . . . . 100 Level 2 18 | . . . . . . 36 38 48 11 . . . . . Level 3 2 | . . . . . . 14 . . . . . . . . Level 4 . | . . . . . . . . . . . . . . . Level 5 . | . . . . . . . . . . . . . . . High Security . | . . . . . . . . . . . . . . . Max Security . | . . . . . . . . . . . . . . . Squads Dispatched 16 | . 1 1 . . 1 . 3 . 10 . . . . . Investigation 4 | . . 1 . . 1 . 1 . 1 . . . . . Extermination 5 | . . . . . . . . . 5 . . . . . Reinforcement 6 | . 1 . . . . . 1 . 4 . . . . . Assault . | . . . . . . . . . . . . . . . Garrison 1 | . . . . . . . 1 . . . . . . . Intercept . | . . . . . . . . . . . . . . . Searches Triggered . | . . . . . . . . . . . . . . . Construction Impeded 2 | . . . . . . . 1 . 1 . . . . . Haulers Reinforced 1 | . . . . . . . . . 1 . . . . . Active Scanning Responses . | . . . . . . . . . . . . . . . Cargo Convoy Interrupts . | . . . . . . . . . . . . . . . Alert ID Control Effect 3 | . . . . . . . . . 3 . . . . . Stealth | -11 -10 -10 -10 -9 -8 -8 -8 -8 -7 -7 -7 -7 -6 -6 --------- Run | Jun Mat Min Exi Min Mat Gar Mat Gar Fac Low Low Dat Pro Fac Distress Signals 8 | . 1 . . . 1 . 1 . 5 . . . . . Communications Jammed . | . . . . . . . . . . . . . . . Distress Signals . | . . . . . . . . . . . . . . . Times Spotted 156 | . 13 4 . 3 2 21 14 13 51 12 14 5 . 4 Peak Tracking Total 9 | . 4 3 . 1 4 9 5 6 5 3 4 2 . 4 Tactical Retreats 8 | . 1 1 . . 1 2 1 . 1 1 . . . . Traps | -11 -10 -10 -10 -9 -8 -8 -8 -8 -7 -7 -7 -7 -6 -6 ------- Run | Jun Mat Min Exi Min Mat Gar Mat Gar Fac Low Low Dat Pro Fac Traps Triggered 14 | . . . . . . 6 1 4 3 . . . . . Indirectly . | . . . . . . . . . . . . . . . Trap Hack Attempts . | . . . . . . . . . . . . . . . Triggered . | . . . . . . . . . . . . . . . Disarmed . | . . . . . . . . . . . . . . . Reprogrammed . | . . . . . . . . . . . . . . . Reused 6 | . . . . . . . . . . . . 6 . . Traps Extracted . | . . . . . . . . . . . . . . . Installed 8 | . . . . . . . . . . . . 8 . . Triggered . | . . . . . . . . . . . . . . . Most Traps Carried 8 | . . . . . . . . . . 8 8 8 . . Machines | -11 -10 -10 -10 -9 -8 -8 -8 -8 -7 -7 -7 -7 -6 -6 ---------- Run | Jun Mat Min Exi Min Mat Gar Mat Gar Fac Low Low Dat Pro Fac Machines Disabled 10 | . 1 . . . . 2 . 1 6 . . . . . Max in Single Turn 4 | . 1 . . . . 1 . 1 4 . . . . . Garrison Relay 3 | . . . . . . 2 . 1 . . . . . . Machines Repaired . | . . . . . . . . . . . . . . . Machines Sabotaged . | . . . . . . . . . . . . . . . Overloaded Fab Kills . | . . . . . . . . . . . . . . . Hacking | -11 -10 -10 -10 -9 -8 -8 -8 -8 -7 -7 -7 -7 -6 -6 --------- Run | Jun Mat Min Exi Min Mat Gar Mat Gar Fac Low Low Dat Pro Fac Machines Accessed 30 | . 2 1 2 . 1 3 4 1 9 1 1 4 . 1 Terminals 14 | . 2 . . . . 3 3 1 4 . . . . 1 Fabricators 1 | . . . . . . . . . 1 . . . . . Repair Stations 2 | . . . . . . . . . 2 . . . . . Recycling Units . | . . . . . . . . . . . . . . . Scanalyzers 2 | . . . . . . . . . 2 . . . . . Garrison Access 2 | . . . . . 1 . 1 . . . . . . . Total Hacks 104 | . 6 1 2 . 2 6 13 1 35 1 1 29 . 7 Successful 66 | . 2 1 2 . 1 1 4 . 22 1 1 29 . 2 Failed 38 | . 4 . . . 1 5 9 1 13 . . . . 5 Catastrophic 8 | . . . . . 1 1 2 . 4 . . . . . Database Lockouts . | . . . . . . . . . . . . . . . Manual 43 | . 6 . 1 . 1 4 10 . 15 . . . . 6 Terminals 43 | . 6 . . . . 6 12 1 11 . . . . 7 Fabricators 10 | . . . . . . . . . 10 . . . . . Repair Stations 8 | . . . . . . . . . 8 . . . . . Recycling Units . | . . . . . . . . . . . . . . . Scanalyzers 6 | . . . . . . . . . 6 . . . . . Garrison Access 3 | . . . . . 2 . 1 . . . . . . . Terminal Hacks 40 | . 2 1 2 . . 1 1 . 2 1 1 29 . . Record 12 | . . . 1 . . . . . . . . 11 . . Part Schematic 11 | . 1 . . . . . . . . . . 10 . . Robot Schematic 6 | . . . . . . . . . 1 . . 5 . . Prototype ID Bank 3 | . . . . . . . . . . . . 3 . . Open Door 3 | . . 1 . . . . . . . 1 1 . . . Branch Access Points 2 | . 1 . . . . . . . 1 . . . . . Emergency Access Points 1 | . . . . . . 1 . . . . . . . . Unreport Threat 1 | . . . . . . . 1 . . . . . . . EX-Prototype ID Bank 1 | . . . 1 . . . . . . . . . . . Fabricator Hacks 8 | . . . . . . . . . 8 . . . . . Load Schematic 4 | . . . . . . . . . 4 . . . . . Build 4 | . . . . . . . . . 4 . . . . . Repair Station Hacks 6 | . . . . . . . . . 6 . . . . . Scan Component 3 | . . . . . . . . . 3 . . . . . Repair 3 | . . . . . . . . . 3 . . . . . Recycling Unit Hacks . | . . . . . . . . . . . . . . . Scanalyzer 3 | . . . . . . . . . 3 . . . . . Insert Component 2 | . . . . . . . . . 2 . . . . . Analyze 1 | . . . . . . . . . 1 . . . . . Garrison Access Hacks 2 | . . . . . 1 . 1 . . . . . . . Unlock Access 2 | . . . . . 1 . 1 . . . . . . . Unauthorized Hacks 7 | . . . . . . . 2 . 3 . . . . 2 Terminals 5 | . . . . . . . 2 . 1 . . . . 2 Assimilate 1 | . . . . . . . . . . . . . . 1 Botnet 4 | . . . . . . . 2 . 1 . . . . 1 Fabricators . | . . . . . . . . . . . . . . . Repair Stations 2 | . . . . . . . . . 2 . . . . . Mechanics 2 | . . . . . . . . . 2 . . . . . Recycling Units . | . . . . . . . . . . . . . . . Scanalyzers . | . . . . . . . . . . . . . . . Garrison Access . | . . . . . . . . . . . . . . . Data Cores Recovered 1 | . . . . . 1 . . . . . . . . . Used . | . . . . . . . . . . . . . . . Hacking Detections 20 | . 2 . . . 1 3 4 1 8 . . . . 1 Full Trace Events 2 | . . . . . 1 . . . 1 . . . . . Feedback Events . | . . . . . . . . . . . . . . . Feedback Blocked . | . . . . . . . . . . . . . . . Robot Schematics Acquired 6 | . . . . . . . . . 1 . . 5 . . Robots Built 8 | . . . . . . . . . 8 . . . . . Authchips 4 | . . . . . . . . . 4 . . . . . Time 268 | . . . . . . . . . 268 . . . . . Total Robot Build Rating 32 | . . . . . . . . . 32 . . . . . Part Schematics Acquired 12 | . 1 . . . . . . . 1 . . 10 . . Parts Built . | . . . . . . . . . . . . . . . Authchips . | . . . . . . . . . . . . . . . Time . | . . . . . . . . . . . . . . . Total Part Build Rating . | . . . . . . . . . . . . . . . Parts Repaired 3 | . . . . . . . . . 3 . . . . . Time 140 | . . . . . . . . . 140 . . . . . Parts Recycled . | . . . . . . . . . . . . . . . Recycled Matter . | . . . . . . . . . . . . . . . Retrieved Matter . | . . . . . . . . . . . . . . . Retrieved Components . | . . . . . . . . . . . . . . . Parts Scanalyzed 1 | . . . . . . . . . 1 . . . . . Part Schematics Acquired 1 | . . . . . . . . . 1 . . . . . Parts Damaged . | . . . . . . . . . . . . . . . Bothacking | -11 -10 -10 -10 -9 -8 -8 -8 -8 -7 -7 -7 -7 -6 -6 ------------ Run | Jun Mat Min Exi Min Mat Gar Mat Gar Fac Low Low Dat Pro Fac Used RIF Installer 2 | . . . . . . 1 . 1 . . . . . . Alert ID Control 1 | . . . . . . . . 1 . . . . . . Robots Hacked 12 | . . . . . . . . 3 8 . . 1 . . Non-combat 3 | . . . . . . . . . 3 . . . . . Combat 9 | . . . . . . . . 3 5 . . 1 . . Robot Hacks Applied 13 | . . . . . . . . 3 9 . . 1 . . parse_system 1 | . . . . . . . . . . . . 1 . . find_fabricator 1 | . . . . . . . . . 1 . . . . . drop_inventory 2 | . . . . . . . . . 2 . . . . . amplify_resonance 1 | . . . . . . . . 1 . . . . . . overwrite_iff 6 | . . . . . . . . 2 4 . . . . . streamctrl_low 1 | . . . . . . . . . 1 . . . . . formatsys_high 1 | . . . . . . . . . 1 . . . . . Relay Couplers Released 12 | . . . . . . 8 . 4 . . . . . . Machine Destruction 12 | . . . . . . 8 . 4 . . . . . . Attached 5 | . . . . . . . 1 2 2 . . . . . Fabnet Peak Effective % . | . . . . . . . . . . . . . . . Robots Rewired 3 | . . . . . . 3 . . . . . . . . Allies Hacked 1 | . . . . . . . . . 1 . . . . . Hacks Repelled . | . . . . . . . . . . . . . . . Allies | -11 -10 -10 -10 -9 -8 -8 -8 -8 -7 -7 -7 -7 -6 -6 -------- Run | Jun Mat Min Exi Min Mat Gar Mat Gar Fac Low Low Dat Pro Fac Total Allies 23 | . . . . 2 . 3 . 2 15 1 . . . . Largest Group 9 | . . . . 2 1 3 . 1 9 7 1 1 . . Highest-Rated Group 315 | . . . . 43 31 48 . 29 315 235 19 19 . . Highest-Rated Ally 37 | . . . . 31 31 31 . 29 37 37 19 19 . . Total Orders 2 | . . . . . . . . . 2 . . . . . STAY 1 | . . . . . . . . . 1 . . . . . FOLLOW 1 | . . . . . . . . . 1 . . . . . Ally Attacks 164 | . . . . 6 11 29 . 4 80 34 . . . . Total Damage 3024 | . . . . 62 84 371 . 47 1698 762 . . . . Kills 32 | . . . . 1 3 5 . 2 13 8 . . . . Allies Corrupted . | . . . . . . . . . . . . . . . Allies Melted 1 | . . . . . . . . . 1 . . . . . Intel | -11 -10 -10 -10 -9 -8 -8 -8 -8 -7 -7 -7 -7 -6 -6 ------- Run | Jun Mat Min Exi Min Mat Gar Mat Gar Fac Low Low Dat Pro Fac Robot Analysis Total 131 | . . . . . . . . . . . . 131 . . Derelict Logs Recovered 2 | . . 1 . . . . . . . 1 . . . . Drone Launches . | . . . . . . . . . . . . . . . Drone Recoveries . | . . . . . . . . . . . . . . . Exploration | -11 -10 -10 -10 -9 -8 -8 -8 -8 -7 -7 -7 -7 -6 -6 ------------- Run | Jun Mat Min Exi Min Mat Gar Mat Gar Fac Low Low Dat Pro Fac Turns Passed 14289 | 76 410 767 791 336 210 1656 610 795 3576 1094 1705 666 1212 385 Spaces Moved 4973 | 44 192 466 372 131 72 426 154 319 1414 382 424 187 300 90 Core 3 | 3 . . . . . . . . . . . . . . Treads 1959 | 41 192 466 372 131 72 426 154 105 . . . . . . Legs . | . . . . . . . . . . . . . . . Wheels 3011 | . . . . . . . . 214 1414 382 424 187 300 90 Hover . | . . . . . . . . . . . . . . . Flight . | . . . . . . . . . . . . . . . Fastest Speed 50 | 50 160 160 160 240 240 320 320 175 150 250 215 215 390 390 Average Speed 254 | 152 160 160 211 240 281 320 322 226 212 262 383 254 393 404 Slowest Speed 405 | 160 160 160 240 240 320 320 330 330 250 390 390 390 405 405 Overloaded Moves . | . . . . . . . . . . . . . . . Propulsion Burnouts . | . . . . . . . . . . . . . . . Robots Hopped . | . . . . . . . . . . . . . . . Cave-ins Triggered . | . . . . . . . . . . . . . . . Time Travels 1 | . . . . . . . . . . . . 1 . . Exploration Rate (%) 43 | 6 41 97 70 24 6 44 21 46 42 56 64 80 59 2 Regions Visited 14 Branch Regions 7 Pre-discovered Areas 25 | . . . 1 . . . . . . . . 24 . . Known Exits Taken 4 | . 1 . . . 1 . 1 . 1 . . . . . Unknown Exits Taken 8 | 1 . 1 1 1 . . . . . 1 1 1 1 . Scrap Searched 12 | . . 3 . . . . . . . 3 4 . 2 . Spaces Dug 6 | . . . . . . . . . 1 . 1 . 2 2 Terrain Destroyed 255 | . 7 29 . . . 52 13 2 72 2 70 . 5 3 Melee . | . . . . . . . . . . . . . . . Projectile 21 | . . . . . . . 3 . 4 2 4 . 5 3 AOE 234 | . 7 29 . . . 52 10 2 68 . 66 . . . Terrain Rammed . | . . . . . . . . . . . . . . . Walls Destroyed . | . . . . . . . . . . . . . . . Machines Disabled . | . . . . . . . . . . . . . . . Actions | -11 -10 -10 -10 -9 -8 -8 -8 -8 -7 -7 -7 -7 -6 -6 --------- Run | Jun Mat Min Exi Min Mat Gar Mat Gar Fac Low Low Dat Pro Fac Total 6118 | 50 257 478 377 152 79 639 216 372 1852 426 460 341 317 102 Wait 532 | . 30 . . 20 2 83 5 . 281 4 5 92 9 1 Move 4961 | 43 191 465 371 130 72 425 154 318 1413 381 423 186 299 90 Hop . | . . . . . . . . . . . . . . . Pick Up 85 | . 5 4 4 1 3 12 10 9 18 13 2 4 . . Fast Attach 32 | 6 2 . . . 1 4 1 3 9 . 2 3 1 . Attach 28 | . . . . . . 1 3 2 10 1 1 8 . 2 Detach 3 | . . . . . . . . . 1 . . 2 . . Swap 72 | 1 3 3 1 . . 15 6 8 23 3 4 2 1 2 Drop 64 | . 1 . 1 . 1 13 12 10 15 . 1 10 . . Fire 280 | . 23 6 . 1 . 53 24 14 74 24 22 25 7 7 Melee . | . . . . . . . . . . . . . . . Ram 1 | . . . . . . . . . . . . 1 . . Kick . | . . . . . . . . . . . . . . . Crush 3 | . 2 . . . . . 1 . . . . . . . Escape Stasis 24 | . . . . . . 8 . 8 8 . . . . . Rewire 25 | . . . . . . 25 . . . . . . . . Trap 8 | . . . . . . . . . . . . 8 . . Miscellaneous . | . . . . . . . . . . . . . . . Route ------- -11/Junkyard -10/Materials -10/Mines (discovered 3 exits: [*Mat x2] / *Exi) -10/Exiles -9/Mines -8/Materials -8/Garrison -8/Materials -8/Garrison (discovered 2 exits: *Fac x2) -7/Factory (discovered 6 exits: *Fac x2 / Sto x2 / *Low x2) -7/Lower Caves -7/Lower Caves (discovered 2 exits: *Fac / *Dat) -7/Data Miner -6/Proximity Caves -6/Factory (discovered 1 exit: [*Fac]) History --------- Turn | Location | Event 8 | -11/Junkyard | Discovered new exit (range 15) 77 | -11/Junkyard | Entered Materials 315 | -10/Materials | Build established: Mutant 401 | -10/Materials | Identified exit to Mines 487 | -10/Materials | Entered Mines 674 | -10/Mines | Learned Materials trap positions 746 | -10/Mines | Met a Derelict shopkeep closing up shop 1013 | -10/Mines | Discovered new exit (range 6) 1126 | -10/Mines | Discovered new exit (range 15) 1246 | -10/Mines | Deemed a non-threat by the Exiles lab entrance 1247 | -10/Mines | Discovered new exit (range 5) 1254 | -10/Mines | Entered Exiles 1298 | -10/Exiles | Met 8R-AWN 1322 | -10/Exiles | Met EX-HEX 1404 | -10/Exiles | Met EX-DEC 1655 | -10/Exiles | Met EX-BIN 1684 | -10/Exiles | Aligned with FarCom system 1687 | -10/Exiles | Given EX-Vault access code 1747 | -10/Exiles | Opened EX-Vault 1783 | -10/Exiles | Found Chronowheel 1834 | -10/Exiles | Warned to stay clear of 0b10 Research branches 1923 | -10/Exiles | Learned location of Zion (-6) 2026 | -10/Exiles | Discovered new exit (range 10) 2045 | -10/Exiles | Left Exiles lab with Chronowheel 2045 | -10/Exiles | Entered Mines 2154 | -9/Mines | Assembled infested the area 2332 | -9/Mines | Discovered new exit (range 12) 2381 | -9/Mines | Entered Materials 2381 | -8/Materials | Accompanied by 1 ally 2381 | -8/Materials | Evolved 4 slots: Utility x4 2382 | -8/Materials | Loaded intel: 12 trap records 2386 | -8/Materials | Led the pair of lost Derelicts to an unsafe place 2591 | -8/Materials | Identified exit to Garrison 2591 | -8/Materials | Entered Garrison 2591 | -8/Garrison | Accompanied by 1 ally 2624 | -8/Garrison | Triggered checkpoint 2773 | -8/Garrison | Garrison Relay disabled 2926 | -8/Garrison | Installed Relay Interface Framework 3330 | -8/Garrison | Build established: Scavenger-Mutant 3386 | -8/Garrison | Triggered checkpoint 3439 | -8/Garrison | Destroyed 9 combat bots 3650 | -8/Garrison | Triggered checkpoint 3924 | -8/Garrison | Triggered checkpoint 4005 | -8/Garrison | Garrison Relay disabled 4094 | -8/Garrison | Discovered new exit (range 11) 4137 | -8/Garrison | Spotted B-75 Beast 4137 | -8/Garrison | Spotted B-75 Beast 4247 | -8/Garrison | Entered Materials 4694 | -8/Materials | Garrison activated, responded to threat 4857 | -8/Materials | Identified exit to Garrison 4857 | -8/Materials | Entered Garrison 4879 | -8/Garrison | Build established: Bothacker-Mutant 5044 | -8/Garrison | Triggered checkpoint 5069 | -8/Garrison | Triggered checkpoint 5147 | -8/Garrison | Discovered new exit (range 8) 5220 | -8/Garrison | Triggered checkpoint 5270 | -8/Garrison | Garrison Relay disabled 5598 | -8/Garrison | Expanded RIF knowledge: Alert ID Control 5635 | -8/Garrison | Discovered new exit (range 11) 5652 | -8/Garrison | Entered Factory 5652 | -7/Factory | Evolved 2 slots: Utility x2 6121 | -7/Factory | Found Prototype Launcher 6121 | -7/Factory | Identified Rocket Array 6132 | -7/Factory | Found Rocket Array 6135 | -7/Factory | Found Rocket Array 6808 | -7/Factory | Lost 3 parts (1n2u) 7481 | -7/Factory | Build established: Hauler-Mutant 7521 | -7/Factory | Repaired Hrd. Medium Armor Plating 7828 | -7/Factory | Fabricated P-60 Hacker (x2) 7919 | -7/Factory | Fabricated P-60 Hacker (x2) 7919 | -7/Factory | Hacker 4c assimilated hostile W-25 Informer 8005 | -7/Factory | Fabricated P-60 Hacker? 8091 | -7/Factory | Fabricated P-60 Hacker? 8149 | -7/Factory | Repaired Arm. Wheel 8220 | -7/Factory | Repaired Hvy. Deuterium Engine 8393 | -7/Factory | Build established: Commander-Mutant 8568 | -7/Factory | Discovered new exit (range 15) 8697 | -7/Factory | Build established: Hauler-Mutant 8724 | -7/Factory | Identified exit to Storage 8724 | -7/Factory | Identified exit to Lower Caves 9161 | -7/Factory | Discovered new exit (range 8) 9228 | -7/Factory | Entered Lower Caves 9228 | -7/Lower Caves | Accompanied by 7 allies 9604 | -7/Lower Caves | Attracted the attention of an 0b10 checkpoint 10000 | -7/Lower Caves | Discovered new exit (range 9) 10005 | -7/Lower Caves | Learned Factory stockpile data 10322 | -7/Lower Caves | Entered another Lower Caves area 10322 | -7/Lower Caves | Accompanied by 1 ally 10323 | -7/Lower Caves | Encountered a Warlord checkpoint 10512 | -7/Lower Caves | Discovered new exit (range 4) 11129 | -7/Lower Caves | Ambushed by wild Derelicts 11243 | -7/Lower Caves | Discovered new exit (range 14) 11279 | -7/Lower Caves | Attracted the attention of an 0b10 checkpoint 12027 | -7/Lower Caves | Entered Data Miner 12027 | -7/Data Miner | Accompanied by 1 ally 12029 | -7/Data Miner | Discovered new exit (range 6) 12069 | -7/Data Miner | Met Data Miner 12110 | -7/Data Miner | Learned location of Section 7 (-3) 12110 | -7/Data Miner | Acquired the access code to Warlord's prototype stash 12142 | -7/Data Miner | Received God Mode back door access code from Data Miner 12305 | -7/Data Miner | Activated Chronowheel 12305 | -7/Data Miner | Spacetime reconverged on an earlier point 12308 | -7/Data Miner | Interfaced with the Data Conduit 12502 | -7/Data Miner | Lost 3 parts (2u1w) 12538 | -7/Data Miner | Found Exp. Thermal Shield 12551 | -7/Data Miner | Lost 3 parts (1n2u) 12693 | -7/Data Miner | Entered Proximity Caves 12754 | -6/Proximity Caves | Spotter reported a threat 12756 | -6/Proximity Caves | Spotter reported a threat 13783 | -6/Proximity Caves | Received a Behemoth hack from an annoying Tinkerer 13846 | -6/Proximity Caves | Discovered new exit (range 6) 13905 | -6/Proximity Caves | Entered Factory 13905 | -6/Factory | Evolved 2 slots: Power x1, Utility x1 13907 | -6/Factory | Loaded intel: 259 machine locations 14055 | -6/Factory | Discovered new exit (range 15) 14290 | -6/Factory | Self-destructed Last Messages --------------- GOAL=ESCAPE 13905_ Receiving FarCom transmissions... Loading Factory stockpile data (x7)... Loading Factory machine intel (x259)... 14055_ EXIT=FOUND 14202_ Connecting with Terminal... 14202_ Current location identified: Factory 14206_ Connecting with Terminal... >>Trojan(Assimilate) Trojan loaded successfully. Testing... System interface override in place. >>Trojan(Botnet) Trojan loaded successfully. Testing... Terminal linked with 0 systems. Awaiting botnet instructions. 14254_ ALERT: All DSF locations entering lockdown mode. 14256_ Plasma Cannon destroyed. 14272_ ALERT: Security rotation in progress. Map ----- +----------------------------------------------------+ | ??????"""?"""?????"""""??????????????????????????? | | ??????????????????"""""??????T???????????????????? | | ??????"""?"""?????????????????????????????"?"????? | | ??????"""?"""?????????????????????????????"G"????? | | ??????"""?"""?????????????????????????????"""????? | | ?????????????????????????????????????????????????? | | ?????????????????????????????????????????????????? | | ?????????? ??? ??????????????????????????????????? | | ?????????? ????????"?????????????????????????????? | | ?????????? ? ??? ?"T?????????? ?????????????""""? | | ????? ? ? ? ?? ? ?????????? ?????????????""""? | | ??????? ? ? ? ? ? ????????? ?????????????""""? | | ??############?## ? ? ? ??#???? ?????????????""""? | | ##??#######?# ??????#???? ?????????????""""? | | """""?#?##?##?##### #?#?????? ?????????????""""? | | """"" #############? ###??#??? ?????????????""""? | | """"" ############# ####?#??# #????????????????? | | """"" ?# ###?? #??#?##?# #????????????????? | | ## """" #### ###??#???# #????????????????? | | ? ## """" #### ??###??#?# ##???????????????? | | ## """" #### ####?#?### # ?o????????????? | | ## """" #### ####??#### #??""" ?????????? | | ## """" #### ########## # """ ?????????? | | ## """" #### ####;##### # """ #???????? | | ######## """" #### g + #??#????? | | # # #### @#####Y# """ #??#????? | | # ###+######### ##### # ?""" ?#???#???? | | # ##### # """ ?###?????? | | + ########### ##### # ??? ?#??##???? | | # ########### ##### ###?##?###?#?????? | | # ########### ##### #?### ##?####????? | | # ######### ###+########????#????? | | ###+######+########### # #?#????????? | | #### #### < # """"" #?###???#??? | | #### #### # ""T"" ###?###????? | | #### #### # g ###?#?#????? | | #### = ######+#######"#####?###???##?? | | #### " g###?##?###??##?#? | | #### #! """" """" ###########?##??? | | #### # """" """" #?#?##??##??#???? | | ?### # """" """" ######???#?#?#??? | | #### # = """" """" ###?###?#??##???? | | ?### # #?####???###????? | | ?######################################?##??#????? | | | | | | | | | | | | | +----------------------------------------------------+ Best States ------------- Heat Dissipation 75 Energy Generation 29 Energy Capacity 500 Matter Stores 500 Matter Capacity 500 Sight Range 16 Terrain Scan Range 16 Terrain Scan Density 210 Armor Coverage 675 Resistance: KI 20 Resistance: TH 30 Evasion (%) 40 Targeting Accuracy 8 Recoil Reduction 2 Defensive Hacking 33 Relay Coupler Types 3 Relay Coupler Value 52 Authchip Count 7 Item Schematics ----------------- Huge Storage Unit | -10/Materials | Hacked Humpback | -7/Factory | Scanalyzed Combat Drone Bay | -7/Data Miner | Free Lgt. Regenerative Plating | -7/Data Miner | Free Cld. Cesium-ion Thruster | -7/Data Miner | Free Exp. Targeting Computer | -7/Data Miner | Free Com. Ion Cannon | -7/Data Miner | Free Field Propulsion Drive | -7/Data Miner | Free Adv. Cooling System | -7/Data Miner | Free Imp. Plasma Cutter | -7/Data Miner | Free Adv. Melee Analysis Suite | -7/Data Miner | Free Mni. Drone Bay | -7/Data Miner | Free Robot Schematics ------------------ P-60 Hacker | -7/Factory | Hacked R-10 Processor | -7/Data Miner | Free B-48 Gladiator | -7/Data Miner | Free S-27 Virus | -7/Data Miner | Free E-15 Imp | -7/Data Miner | Free P-70 Sage | -7/Data Miner | Free Fabricated ------------ P-60 Hacker | x2 | -7/Factory | Authchip P-60 Hacker | x2 | -7/Factory | Authchip P-60 Hacker | x2 | -7/Factory | Authchip P-60 Hacker | x2 | -7/Factory | Authchip Alien Tech Used ----------------- None Achievements -------------- None Challenges ------------ None Game ------ Seed MiniGrapheneDesublimator Manual? 0 Play Time 01:07:05 Cumulative 409.0 hours Start 2023.03.07 @ 08:52:43 End 2023.03.07 @ 11:04:08 Sessions 3 Manual Loads 0 Difficulty Rogue Special Mode None Game No. 442 Rogue 433 Adventurer 8 Explorer 1 Win Type - Total 6 Types 3/1/2/0/0/0/0/0/0 Lore% 78 Gallery% 89 Achievement% 71 Wizard Run 0 Options --------- ASCII 0 Keyboard 0 Movement Numpad Keybinds 1 Fullscreen 2 Font 18/Terminus Map View 76x50 Tactical HUD 1 Map Filters NONE Filters NONE Steam 1 RUN: 9e3b9cf5-9a96-4d3a-9522-f67481d7b337